[Event "*** Titled Tuesday 3|2 Blitz"]
[Site "Chess.com"]
[Date "2016.05.03"]
[Round "8"]
[White "arna"]
[Black "the_drake"]
[Result "1-0"]
[WhiteElo "2146"]
[BlackElo "2182"]
[TimeControl "180+2"]
[EndTime "12:47:09 PDT"]
[Termination "arna won by checkmate"]

1. e4 {[%clk 0:03:01.9]} 1... e5 {[%clk 0:02:53.3]} 2. Nf3 {[%clk 0:02:59.9]}
2... Nc6 {[%clk 0:02:54.8]} 3. Nc3 {[%clk 0:03:01.3]} 3... Nf6 {[%clk
0:02:54.8]} 4. Be2 {[%clk 0:03:02.8]} 4... Bc5 {[%clk 0:02:54.7]} 5. Nxe5 {[%clk
0:03:02.9]} 5... Nxe5 {[%clk 0:02:52]} 6. d4 {[%clk 0:03:03.3]} 6... Bxd4 {[%clk
0:02:35.5]} 7. Qxd4 {[%clk 0:03:02.6]} 7... Nc6 {[%clk 0:02:37.4]} 8. Qd1 {[%clk
0:02:50.4]} 8... O-O {[%clk 0:02:37.2]} 9. Bg5 {[%clk 0:02:48.2]} 9... h6 {[%clk
0:02:37.4]} 10. Bh4 {[%clk 0:02:48.5]} 10... Qe7 {[%clk 0:02:35.5]} 11. O-O
{[%clk 0:02:40.3]} 11... Qe5 {[%clk 0:02:34.2]} 12. Bg3 {[%clk 0:02:38.1]} 12...
Qa5 {[%clk 0:02:32.2]} 13. a3 {[%clk 0:01:50.5]} 13... d6 {[%clk 0:02:03.9]} 14.
b4 {[%clk 0:01:16.8]} 14... Qg5 {[%clk 0:01:57.7]} 15. f4 {[%clk 0:00:57.4]}
15... Qg6 {[%clk 0:01:49.7]} 16. f5 {[%clk 0:00:49.3]} 16... Qh7 {[%clk
0:01:33.3]} 17. Bd3 {[%clk 0:00:39.9]} 17... Ne5 {[%clk 0:01:26.2]} 18. Nb5
{[%clk 0:00:37.9]} 18... Ne8 {[%clk 0:01:17.8]} 19. Qd2 {[%clk 0:00:18.7]} 19...
a6 {[%clk 0:01:14]} 20. Nd4 {[%clk 0:00:18.1]} 20... Nf6 {[%clk 0:01:07.7]} 21.
Qc3 {[%clk 0:00:19.2]} 21... c6 {[%clk 0:01:03]} 22. h3 {[%clk 0:00:14.1]} 22...
Bd7 {[%clk 0:00:52.7]} 23. Bxe5 {[%clk 0:00:14.2]} 23... dxe5 {[%clk 0:00:52.4]}
24. Nf3 {[%clk 0:00:16.1]} 24... Bxf5 {[%clk 0:00:48.1]} 25. exf5 {[%clk
0:00:16.7]} 25... e4 {[%clk 0:00:49]} 26. Rae1 {[%clk 0:00:13.8]} 26... exd3
{[%clk 0:00:39.1]} 27. Ne5 {[%clk 0:00:12.9]} 27... dxc2 {[%clk 0:00:37.3]} 28.
g4 {[%clk 0:00:13.5]} 28... Nd5 {[%clk 0:00:32.2]} 29. Qxc2 {[%clk 0:00:13.6]}
29... h5 {[%clk 0:00:31.8]} 30. g5 {[%clk 0:00:12.5]} 30... h4 {[%clk
0:00:31.5]} 31. Qg2 {[%clk 0:00:11.4]} 31... Qh5 {[%clk 0:00:30.9]} 32. Re4
{[%clk 0:00:10.3]} 32... f6 {[%clk 0:00:29.6]} 33. gxf6 {[%clk 0:00:09]} 33...
Rxf6 {[%clk 0:00:30.2]} 34. Ng4 {[%clk 0:00:09.8]} 34... Rxf5 {[%clk 0:00:29.8]}
35. Rfe1 {[%clk 0:00:08.3]} 35... Nf6 {[%clk 0:00:28.2]} 36. Re5 {[%clk
0:00:06.5]} 36... Nxg4 {[%clk 0:00:25.8]} 37. hxg4 {[%clk 0:00:07.6]} 37... Rxe5
{[%clk 0:00:26.5]} 38. gxh5 {[%clk 0:00:08.8]} 38... Rxe1+ {[%clk 0:00:26.7]}
39. Kh2 {[%clk 0:00:08.4]} 39... Rae8 {[%clk 0:00:26.8]} 40. Qg6 {[%clk
0:00:08.4]} 40... R8e6 {[%clk 0:00:25.2]} 41. Qf5 {[%clk 0:00:07.8]} 41... Rf6
{[%clk 0:00:24.1]} 42. Qc8+ {[%clk 0:00:07.2]} 42... Kh7 {[%clk 0:00:23.2]} 43.
Qxb7 {[%clk 0:00:08.9]} 43... Re3 {[%clk 0:00:22.8]} 44. Qb6 {[%clk 0:00:06.4]}
44... Rf2+ {[%clk 0:00:23.1]} 45. Kg1 {[%clk 0:00:07.5]} 45... Rfe2 {[%clk
0:00:20.2]} 46. Qxa6 {[%clk 0:00:07.3]} 46... Rd2 {[%clk 0:00:16.6]} 47. Kf1
{[%clk 0:00:06.6]} 47... Rh3 {[%clk 0:00:17.3]} 48. Qxc6 {[%clk 0:00:03.5]}
48... Rg3 {[%clk 0:00:16.3]} 49. Qe4+ {[%clk 0:00:03.9]} 49... Kh6 {[%clk
0:00:14.7]} 50. Qf4+ {[%clk 0:00:05.2]} 50... Kxh5 {[%clk 0:00:15.8]} 51. Qxd2
{[%clk 0:00:06.2]} 51... g5 {[%clk 0:00:16]} 52. b5 {[%clk 0:00:06.9]} 52...
Rxa3 {[%clk 0:00:16]} 53. Qe2+ {[%clk 0:00:08.2]} 53... Kh6 {[%clk 0:00:13.5]}
54. b6 {[%clk 0:00:08.6]} 54... Ra1+ {[%clk 0:00:11.6]} 55. Kf2 {[%clk
0:00:09.5]} 55... Rb1 {[%clk 0:00:11.8]} 56. Qe6+ {[%clk 0:00:10.2]} 56... Kh5
{[%clk 0:00:11.6]} 57. Qe2+ {[%clk 0:00:08.6]} 57... Kh6 {[%clk 0:00:11.1]} 58.
Qe6+ {[%clk 0:00:09.2]} 58... Kh5 {[%clk 0:00:11.5]} 59. Qf7+ {[%clk 0:00:09.4]}
59... Kg4 {[%clk 0:00:11.8]} 60. Qd7+ {[%clk 0:00:10.4]} 60... Kh5 {[%clk
0:00:12.8]} 61. Qh7+ {[%clk 0:00:10.6]} 61... Kg4 {[%clk 0:00:14.1]} 62. Qxb1
{[%clk 0:00:12.5]} 62... Kh3 {[%clk 0:00:15.3]} 63. Qd3+ {[%clk 0:00:13]} 63...
Kg4 {[%clk 0:00:14.7]} 64. Qf3# {[%clk 0:00:13.6]} 1-0

[Event "*** Titled Tuesday 3|2 Blitz"]
[Site "Chess.com"]
[Date "2016.05.03"]
[Round "8"]
[White "severomorskij"]
[Black "Kacparov"]
[Result "1/2-1/2"]
[WhiteElo "2604"]
[BlackElo "2604"]
[TimeControl "180+2"]
[EndTime "12:48:07 PDT"]
[Termination "Game drawn by agreement"]

1. d4 {[%clk 0:03:01.9]} 1... g6 {[%clk 0:03:00.5]} 2. e4 {[%clk 0:03:00]} 2...
Bg7 {[%clk 0:03:01.3]} 3. Nc3 {[%clk 0:03:00.9]} 3... d6 {[%clk 0:03:02.7]} 4.
Be3 {[%clk 0:03:01.1]} 4... Nf6 {[%clk 0:03:02.7]} 5. Qd2 {[%clk 0:03:01.5]}
5... Ng4 {[%clk 0:03:02.4]} 6. Bg5 {[%clk 0:02:59.2]} 6... h6 {[%clk 0:03:01.4]}
7. Bh4 {[%clk 0:02:59]} 7... g5 {[%clk 0:02:29]} 8. Bg3 {[%clk 0:02:57.9]} 8...
Nc6 {[%clk 0:02:28.7]} 9. f3 {[%clk 0:02:55.5]} 9... Nf6 {[%clk 0:02:27.9]} 10.
O-O-O {[%clk 0:02:56.3]} 10... Nh5 {[%clk 0:02:20.8]} 11. Bf2 {[%clk 0:02:55.2]}
11... e5 {[%clk 0:02:22]} 12. Nge2 {[%clk 0:02:48]} 12... O-O {[%clk 0:02:19.5]}
13. h4 {[%clk 0:02:40]} 13... g4 {[%clk 0:02:20.4]} 14. Kb1 {[%clk 0:02:16.5]}
14... a6 {[%clk 0:02:14.6]} 15. Be3 {[%clk 0:02:06.4]} 15... Kh7 {[%clk
0:02:13.8]} 16. d5 {[%clk 0:01:56.8]} 16... Ne7 {[%clk 0:02:13.8]} 17. f4 {[%clk
0:01:54.4]} 17... exf4 {[%clk 0:02:10.8]} 18. Nxf4 {[%clk 0:01:55]} 18... Nxf4
{[%clk 0:02:11.7]} 19. Bxf4 {[%clk 0:01:55.9]} 19... Ng6 {[%clk 0:02:13.4]} 20.
Be3 {[%clk 0:01:47.3]} 20... Qe7 {[%clk 0:02:12.2]} 21. Bd3 {[%clk 0:01:44.7]}
21... Ne5 {[%clk 0:02:11.9]} 22. Ne2 {[%clk 0:01:38.6]} 22... Nxd3 {[%clk
0:02:03.7]} 23. cxd3 {[%clk 0:01:38.9]} 23... f5 {[%clk 0:02:04.4]} 24. Qc2
{[%clk 0:01:28.3]} 24... c6 {[%clk 0:01:55.8]} 25. dxc6 {[%clk 0:01:19.3]} 25...
bxc6 {[%clk 0:01:56.3]} 26. Bd4 {[%clk 0:01:20.6]} 26... c5 {[%clk 0:01:50.6]}
27. Bxg7 {[%clk 0:01:19.2]} 27... Qxg7 {[%clk 0:01:52.5]} 28. Rhf1 {[%clk
0:01:11.7]} 28... Bd7 {[%clk 0:01:52.9]} 29. exf5 {[%clk 0:01:05]} 29... Bxf5
{[%clk 0:01:52.2]} 30. Ng3 {[%clk 0:01:06]} 30... Be6 {[%clk 0:01:42.3]} 31. d4+
{[%clk 0:01:03.9]} 31... Qg6 {[%clk 0:01:36.1]} 32. Qxg6+ {[%clk 0:00:43.8]}
32... Kxg6 {[%clk 0:01:37.1]} 33. Rfe1 {[%clk 0:00:36.2]} 33... Rf6 {[%clk
0:01:24.6]} 34. dxc5 {[%clk 0:00:31.2]} 34... dxc5 {[%clk 0:01:22.5]} 35. h5+
{[%clk 0:00:20.3]} 35... Kf7 {[%clk 0:01:16.7]} 36. b3 {[%clk 0:00:13.8]} 36...
Re8 {[%clk 0:00:55.8]} 37. Kc1 {[%clk 0:00:11.1]} 37... Rf4 {[%clk 0:00:36.7]}
38. Rf1 {[%clk 0:00:11.9]} 38... Rxf1 {[%clk 0:00:36.7]} 39. Rxf1+ {[%clk
0:00:13.4]} 39... Kg7 {[%clk 0:00:36.6]} 40. Kd2 {[%clk 0:00:14.3]} 40... Bd5
{[%clk 0:00:34.3]} 41. Nf5+ {[%clk 0:00:14.9]} 41... Kh7 {[%clk 0:00:35]} 42.
Ne3 {[%clk 0:00:16.3]} 42... Ba8 {[%clk 0:00:31.7]} 43. Rf7+ {[%clk 0:00:12.6]}
43... Kg8 {[%clk 0:00:32.4]} 44. Rf6 {[%clk 0:00:13.8]} 44... Be4 {[%clk
0:00:18.9]} 45. Nxg4 {[%clk 0:00:12.7]} 45... Bxg2 {[%clk 0:00:17.9]} 46. Rg6+
{[%clk 0:00:13.3]} 46... Kf8 {[%clk 0:00:18.8]} 47. Nxh6 {[%clk 0:00:13.5]}
47... Bd5 {[%clk 0:00:17.2]} 48. Rxa6 {[%clk 0:00:09.5]} 48... Re5 {[%clk
0:00:18]} 49. Ng4 {[%clk 0:00:06.6]} 49... Rxh5 {[%clk 0:00:18.9]} 50. Kc3
{[%clk 0:00:07.1]} 50... Rh3+ {[%clk 0:00:19]} 51. Kd2 {[%clk 0:00:08]} 51...
Rg3 {[%clk 0:00:19.6]} 52. Ne3 {[%clk 0:00:09.1]} 52... Bf7 {[%clk 0:00:19.6]}
53. Ra5 {[%clk 0:00:09.4]} 53... Rg5 {[%clk 0:00:19]} 54. Ra7 {[%clk 0:00:06.1]}
54... Rh5 {[%clk 0:00:19.1]} 55. Rb7 {[%clk 0:00:07.2]} 55... Ke8 {[%clk
0:00:19.8]} 56. a4 {[%clk 0:00:06.8]} 56... Be6 {[%clk 0:00:19.8]} 57. a5 {[%clk
0:00:07.3]} 57... Kd8 {[%clk 0:00:20.6]} 58. a6 {[%clk 0:00:08.3]} 58... Bc8
{[%clk 0:00:21.4]} 59. Rb8 {[%clk 0:00:08.6]} 59... Rh2+ {[%clk 0:00:19.7]} 60.
Kd3 {[%clk 0:00:09.6]} 60... Ra2 {[%clk 0:00:20.8]} 61. Rb6 {[%clk 0:00:08.4]}
61... Kc7 {[%clk 0:00:21.7]} 62. Nd5+ {[%clk 0:00:09.6]} 62... Kd8 {[%clk
0:00:22.7]} 63. Kc4 {[%clk 0:00:10.8]} 63... Rxa6 {[%clk 0:00:22.1]} 64. Kxc5
{[%clk 0:00:11.6]} 64... Rxb6 {[%clk 0:00:23.2]} 65. Nxb6 {[%clk 0:00:12.7]}
65... Ba6 {[%clk 0:00:24.2]} 66. b4 {[%clk 0:00:13.9]} 66... Kc7 {[%clk
0:00:25.5]} 67. Nd5+ {[%clk 0:00:15]} 67... Kb7 {[%clk 0:00:26.2]} 68. Nc3
{[%clk 0:00:15.9]} 68... Bd3 {[%clk 0:00:27]} 69. Nd5 {[%clk 0:00:16.6]} 69...
Bf1 {[%clk 0:00:27.4]} 70. Ne3 {[%clk 0:00:17.1]} 70... Be2 {[%clk 0:00:28.6]}
71. Nf5 {[%clk 0:00:17.4]} 71... Bf1 {[%clk 0:00:29.6]} 72. Nd6+ {[%clk
0:00:18.6]} 72... Kc7 {[%clk 0:00:30.7]} 73. Nb5+ {[%clk 0:00:19]} 73... Kb7
{[%clk 0:00:30.8]} 74. Nc3 {[%clk 0:00:19]} 74... Kc7 {[%clk 0:00:31.3]} 75. Kd4
{[%clk 0:00:20.1]} 75... Kb6 {[%clk 0:00:31.7]} 76. Ke3 {[%clk 0:00:20]} 76...
Kb7 {[%clk 0:00:32.5]} 77. Kf2 {[%clk 0:00:20.1]} 77... Bc4 {[%clk 0:00:33.4]}
78. Ke3 {[%clk 0:00:21.6]} 78... Kb6 {[%clk 0:00:34.1]} 79. Kd4 {[%clk 0:00:23]}
79... Bf1 {[%clk 0:00:35]} 80. Ke3 {[%clk 0:00:23.2]} 80... Kb7 {[%clk
0:00:35.8]} 81. Kd2 {[%clk 0:00:24.8]} 81... Bc4 {[%clk 0:00:36.5]} 82. Kc2
{[%clk 0:00:26.1]} 82... Kb6 {[%clk 0:00:37.5]} 83. Kb2 {[%clk 0:00:27.5]} 83...
Kb7 {[%clk 0:00:38.6]} 84. Ne4 {[%clk 0:00:28]} 84... Kb6 {[%clk 0:00:39.3]} 85.
Kc3 {[%clk 0:00:28.6]} 85... Bf1 {[%clk 0:00:40.1]} 86. Nd2 {[%clk 0:00:29.8]}
86... Be2 {[%clk 0:00:41.2]} 87. Nb3 {[%clk 0:00:30.3]} 87... Kb7 {[%clk
0:00:41]} 88. Nc1 {[%clk 0:00:27.9]} 88... Bf1 {[%clk 0:00:42.1]} 89. Nd3 {[%clk
0:00:29.2]} 89... Kb6 {[%clk 0:00:41.5]} 90. Nc5 {[%clk 0:00:30]} 90... Be2
{[%clk 0:00:41.3]} 91. Nb3 {[%clk 0:00:30.4]} 91... Bf1 {[%clk 0:00:42.1]} 92.
Nd2 {[%clk 0:00:30.1]} 92... Be2 {[%clk 0:00:43]} 1/2-1/2

[Event "*** Titled Tuesday 3|2 Blitz"]
[Site "Chess.com"]
[Date "2016.05.03"]
[Round "8"]
[White "BahadirOzen"]
[Black "bugsbunny444"]
[Result "1/2-1/2"]
[WhiteElo "2496"]
[BlackElo "2390"]
[TimeControl "180+2"]
[EndTime "12:48:08 PDT"]
[Termination "Game drawn - insufficient material"]

1. b3 {[%clk 0:03:01.9]} 1... d5 {[%clk 0:03:00.6]} 2. Bb2 {[%clk 0:03:03]} 2...
Nf6 {[%clk 0:03:01.9]} 3. Nf3 {[%clk 0:03:02]} 3... e6 {[%clk 0:03:03]} 4. g3
{[%clk 0:03:02.1]} 4... Be7 {[%clk 0:03:04]} 5. Bg2 {[%clk 0:03:03.6]} 5... O-O
{[%clk 0:03:05.5]} 6. O-O {[%clk 0:03:05.5]} 6... c5 {[%clk 0:03:01.9]} 7. d3
{[%clk 0:03:05.3]} 7... Nc6 {[%clk 0:02:58.5]} 8. Nbd2 {[%clk 0:03:06.6]} 8...
d4 {[%clk 0:02:48.1]} 9. c3 {[%clk 0:03:02.5]} 9... e5 {[%clk 0:02:43.8]} 10.
Nc4 {[%clk 0:03:02.3]} 10... Qc7 {[%clk 0:02:35.5]} 11. Rc1 {[%clk 0:02:45.5]}
11... Rd8 {[%clk 0:02:14]} 12. cxd4 {[%clk 0:02:21.4]} 12... exd4 {[%clk
0:02:14.7]} 13. e3 {[%clk 0:02:13.5]} 13... dxe3 {[%clk 0:02:01.6]} 14. Nxe3
{[%clk 0:02:15.4]} 14... b6 {[%clk 0:01:28.1]} 15. b4 {[%clk 0:01:22.5]} 15...
Nxb4 {[%clk 0:01:17.9]} 16. Ne5 {[%clk 0:01:24.1]} 16... Bb7 {[%clk 0:01:10.4]}
17. Qb3 {[%clk 0:01:25.2]} 17... Bd6 {[%clk 0:00:55.7]} 18. Nxf7 {[%clk
0:00:33.5]} 18... Qxf7 {[%clk 0:00:49.8]} 19. Bxb7 {[%clk 0:00:27.6]} 19... Rab8
{[%clk 0:00:38.9]} 20. Bxf6 {[%clk 0:00:19.1]} 20... Qxb3 {[%clk 0:00:25]} 21.
axb3 {[%clk 0:00:21]} 21... gxf6 {[%clk 0:00:25.8]} 22. Be4 {[%clk 0:00:22.9]}
22... Bf8 {[%clk 0:00:10.5]} 23. Rcd1 {[%clk 0:00:19.8]} 23... Rd7 {[%clk
0:00:06.5]} 24. Ng4 {[%clk 0:00:12.7]} 24... Kg7 {[%clk 0:00:04.9]} 25. Rd2
{[%clk 0:00:08.6]} 25... Rbd8 {[%clk 0:00:06]} 26. Rfd1 {[%clk 0:00:10.3]} 26...
Bd6 {[%clk 0:00:03.9]} 27. Ne3 {[%clk 0:00:07.8]} 27... Be5 {[%clk 0:00:04.5]}
28. Nf5+ {[%clk 0:00:09.7]} 28... Kg8 {[%clk 0:00:03]} 29. f4 {[%clk 0:00:09.4]}
29... Bc3 {[%clk 0:00:03.8]} 30. Re2 {[%clk 0:00:10.6]} 30... Nxd3 {[%clk
0:00:04]} 31. Re3 {[%clk 0:00:09.2]} 31... Bd4 {[%clk 0:00:03.4]} 32. Nxd4
{[%clk 0:00:09.2]} 32... Nb4 {[%clk 0:00:04.4]} 33. Kg2 {[%clk 0:00:02.1]} 33...
Rxd4 {[%clk 0:00:05.4]} 34. Rde1 {[%clk 0:00:02.9]} 34... Rd2+ {[%clk
0:00:06.1]} 35. Kh3 {[%clk 0:00:04.6]} 35... R8d7 {[%clk 0:00:05.2]} 36. Bf5
{[%clk 0:00:06]} 36... Rc7 {[%clk 0:00:05.4]} 37. Re8+ {[%clk 0:00:07.5]} 37...
Kg7 {[%clk 0:00:06.7]} 38. R1e7+ {[%clk 0:00:05.9]} 38... Rxe7 {[%clk
0:00:07.4]} 39. Rxe7+ {[%clk 0:00:07.8]} 39... Kf8 {[%clk 0:00:08.5]} 40. Rxa7
{[%clk 0:00:08.9]} 40... h5 {[%clk 0:00:05.8]} 41. Be6 {[%clk 0:00:08.1]} 41...
Nd3 {[%clk 0:00:04]} 42. Rb7 {[%clk 0:00:05.1]} 42... Nf2+ {[%clk 0:00:03]} 43.
Kh4 {[%clk 0:00:06.7]} 43... Ne4 {[%clk 0:00:03.8]} 44. Kxh5 {[%clk 0:00:06.8]}
44... Rxh2+ {[%clk 0:00:04.5]} 45. Kg6 {[%clk 0:00:08.4]} 45... Nxg3 {[%clk
0:00:03.1]} 46. Kxf6 {[%clk 0:00:05.1]} 46... Rh6+ {[%clk 0:00:02.8]} 47. Ke5
{[%clk 0:00:06]} 47... Ke8 {[%clk 0:00:02]} 48. Rxb6 {[%clk 0:00:04.4]} 48...
Kd8 {[%clk 0:00:03.5]} 49. Rc6 {[%clk 0:00:03]} 49... Ne2 {[%clk 0:00:04.1]} 50.
Rc8+ {[%clk 0:00:03.7]} 50... Ke7 {[%clk 0:00:05]} 51. Rc7+ {[%clk 0:00:05.6]}
51... Kd8 {[%clk 0:00:06.4]} 52. Rd7+ {[%clk 0:00:06.9]} 52... Ke8 {[%clk
0:00:06.8]} 53. f5 {[%clk 0:00:08.1]} 53... Nd4 {[%clk 0:00:06.9]} 54. Rc7
{[%clk 0:00:06.1]} 54... Nxe6 {[%clk 0:00:06.5]} 55. fxe6 {[%clk 0:00:08]} 55...
Rh3 {[%clk 0:00:04.6]} 56. Rxc5 {[%clk 0:00:06.9]} 56... Rxb3 {[%clk 0:00:05.7]}
57. Rc8+ {[%clk 0:00:05.8]} 57... Ke7 {[%clk 0:00:06.7]} 58. Rc7+ {[%clk
0:00:07.7]} 58... Ke8 {[%clk 0:00:08]} 59. Rc5 {[%clk 0:00:05.3]} 59... Ke7
{[%clk 0:00:08.2]} 60. Rc7+ {[%clk 0:00:06.3]} 60... Ke8 {[%clk 0:00:09.2]} 61.
Rh7 {[%clk 0:00:07.7]} 61... Rb1 {[%clk 0:00:08.5]} 62. Kd5 {[%clk 0:00:07.3]}
62... Rd1+ {[%clk 0:00:08.6]} 63. Kc6 {[%clk 0:00:06.5]} 63... Rc1+ {[%clk
0:00:09]} 64. Kd6 {[%clk 0:00:08.1]} 64... Rd1+ {[%clk 0:00:10.3]} 65. Ke5
{[%clk 0:00:09.8]} 65... Re1+ {[%clk 0:00:11.7]} 66. Kf5 {[%clk 0:00:11.5]}
66... Rf1+ {[%clk 0:00:13.1]} 67. Kg5 {[%clk 0:00:12.9]} 67... Rg1+ {[%clk
0:00:14.4]} 68. Kf6 {[%clk 0:00:14.6]} 68... Rf1+ {[%clk 0:00:15.8]} 69. Kg6
{[%clk 0:00:15.9]} 69... Rg1+ {[%clk 0:00:17.1]} 70. Kf5 {[%clk 0:00:17.6]}
70... Rf1+ {[%clk 0:00:18.4]} 71. Ke4 {[%clk 0:00:19.5]} 71... Re1+ {[%clk
0:00:19.4]} 72. Kd5 {[%clk 0:00:21.1]} 72... Rd1+ {[%clk 0:00:20.6]} 73. Kc4
{[%clk 0:00:22.5]} 73... Rc1+ {[%clk 0:00:21.8]} 74. Kd4 {[%clk 0:00:23]} 74...
Rd1+ {[%clk 0:00:22.2]} 75. Kc3 {[%clk 0:00:24.6]} 75... Re1 {[%clk 0:00:22.8]}
76. Rh6 {[%clk 0:00:26]} 76... Ke7 {[%clk 0:00:23.7]} 77. Kd4 {[%clk 0:00:27.6]}
77... Rxe6 {[%clk 0:00:24.3]} 78. Rxe6+ {[%clk 0:00:02.6]} 78... Kxe6 {[%clk
0:00:25]} 1/2-1/2

[Event "*** Titled Tuesday 3|2 Blitz"]
[Site "Chess.com"]
[Date "2016.05.03"]
[Round "8"]
[White "Anton_Demchenko"]
[Black "Gergo85"]
[Result "1-0"]
[WhiteElo "2652"]
[BlackElo "2439"]
[TimeControl "180+2"]
[EndTime "12:49:53 PDT"]
[Termination "Anton_Demchenko won on time"]

1. e4 {[%clk 0:03:01.9]} 1... d5 {[%clk 0:03:00.9]} 2. exd5 {[%clk 0:03:02.7]}
2... Qxd5 {[%clk 0:03:02.8]} 3. Nc3 {[%clk 0:03:04]} 3... Qd6 {[%clk 0:03:03.9]}
4. d4 {[%clk 0:03:05]} 4... Nf6 {[%clk 0:03:05.6]} 5. h3 {[%clk 0:03:00.3]} 5...
g6 {[%clk 0:03:06.2]} 6. Nf3 {[%clk 0:03:00.6]} 6... Bg7 {[%clk 0:03:06.8]} 7.
Bc4 {[%clk 0:02:58.5]} 7... O-O {[%clk 0:03:05.8]} 8. O-O {[%clk 0:02:59.4]}
8... a6 {[%clk 0:03:04.1]} 9. a4 {[%clk 0:02:55.5]} 9... Nc6 {[%clk 0:03:02.3]}
10. Be3 {[%clk 0:02:52]} 10... Bf5 {[%clk 0:02:56.8]} 11. Qc1 {[%clk 0:02:45.4]}
11... Qd7 {[%clk 0:02:37]} 12. Rd1 {[%clk 0:02:41.7]} 12... Rad8 {[%clk
0:02:22.2]} 13. Ne5 {[%clk 0:02:35.5]} 13... Qe8 {[%clk 0:02:06.9]} 14. f4
{[%clk 0:02:25.6]} 14... Nxe5 {[%clk 0:01:58.1]} 15. dxe5 {[%clk 0:02:10.1]}
15... Ne4 {[%clk 0:01:53.2]} 16. Nd5 {[%clk 0:01:11.4]} 16... e6 {[%clk
0:01:41.4]} 17. Nb4 {[%clk 0:01:12.4]} 17... h5 {[%clk 0:01:31.6]} 18. Rxd8
{[%clk 0:01:01.7]} 18... Qxd8 {[%clk 0:01:33.5]} 19. Qe1 {[%clk 0:01:03.4]}
19... Qe7 {[%clk 0:01:24.6]} 20. Nd3 {[%clk 0:01:04.3]} 20... Rd8 {[%clk
0:01:18.6]} 21. a5 {[%clk 0:01:00.4]} 21... Qe8 {[%clk 0:01:01.8]} 22. Rd1
{[%clk 0:00:50.9]} 22... Bf8 {[%clk 0:01:02.1]} 23. Qe2 {[%clk 0:00:39.1]} 23...
Qa4 {[%clk 0:00:59.8]} 24. Bb3 {[%clk 0:00:30.3]} 24... Qxa5 {[%clk 0:00:52.7]}
25. g4 {[%clk 0:00:31.6]} 25... hxg4 {[%clk 0:00:52.9]} 26. hxg4 {[%clk
0:00:33.5]} 26... Ng3 {[%clk 0:00:47.6]} 27. Qf3 {[%clk 0:00:34.8]} 27... Bxg4
{[%clk 0:00:21]} 28. Qxg4 {[%clk 0:00:35.1]} 28... Nf5 {[%clk 0:00:22.6]} 29.
Bf2 {[%clk 0:00:35.8]} 29... c5 {[%clk 0:00:23.8]} 30. c4 {[%clk 0:00:22.7]}
30... Qc7 {[%clk 0:00:22.2]} 31. Bc2 {[%clk 0:00:22.7]} 31... Rd7 {[%clk
0:00:22.9]} 32. Ne1 {[%clk 0:00:22]} 32... Rxd1 {[%clk 0:00:21.4]} 33. Qxd1
{[%clk 0:00:23.9]} 33... b5 {[%clk 0:00:22.8]} 34. Bxf5 {[%clk 0:00:22.6]} 34...
exf5 {[%clk 0:00:23]} 35. Qd5 {[%clk 0:00:22.2]} 35... Qc8 {[%clk 0:00:21]} 36.
Nf3 {[%clk 0:00:20.5]} 36... Bh6 {[%clk 0:00:21]} 37. Be3 {[%clk 0:00:18.8]}
37... bxc4 {[%clk 0:00:21.6]} 38. Qxc4 {[%clk 0:00:19.4]} 38... Qb7 {[%clk
0:00:23.2]} 39. Ng5 {[%clk 0:00:12.3]} 39... Bxg5 {[%clk 0:00:23.8]} 40. fxg5
{[%clk 0:00:14.2]} 40... Qxb2 {[%clk 0:00:24.9]} 41. Qxc5 {[%clk 0:00:14]} 41...
Qb1+ {[%clk 0:00:24.1]} 42. Kf2 {[%clk 0:00:14.8]} 42... Qe4 {[%clk 0:00:19.1]}
43. Qd4 {[%clk 0:00:09.2]} 43... Qc2+ {[%clk 0:00:19.7]} 44. Kf3 {[%clk
0:00:10.2]} 44... Qc6+ {[%clk 0:00:20.3]} 45. Kg3 {[%clk 0:00:11.5]} 45... Qe6
{[%clk 0:00:17.9]} 46. Qc5 {[%clk 0:00:09.7]} 46... Kh7 {[%clk 0:00:18.5]} 47.
Kf3 {[%clk 0:00:10.3]} 47... Qb3 {[%clk 0:00:18]} 48. Ke2 {[%clk 0:00:09.6]}
48... Qa2+ {[%clk 0:00:18.3]} 49. Bd2 {[%clk 0:00:10.9]} 49... Qe6 {[%clk
0:00:18.1]} 50. Qd6 {[%clk 0:00:12.2]} 50... Qc4+ {[%clk 0:00:19.2]} 51. Ke1
{[%clk 0:00:13.7]} 51... Qe4+ {[%clk 0:00:19.9]} 52. Kd1 {[%clk 0:00:15.3]}
52... Qc4 {[%clk 0:00:21.1]} 53. Qe7 {[%clk 0:00:07.1]} 53... f4 {[%clk
0:00:21.5]} 54. Qf6 {[%clk 0:00:06.2]} 54... Qb3+ {[%clk 0:00:21.2]} 55. Ke2
{[%clk 0:00:05.1]} 55... f3+ {[%clk 0:00:21.2]} 56. Qxf3 {[%clk 0:00:04.1]}
56... Qc4+ {[%clk 0:00:21.9]} 57. Ke1 {[%clk 0:00:05.2]} 57... Qe6 {[%clk
0:00:21.9]} 58. Qf4 {[%clk 0:00:06.1]} 58... a5 {[%clk 0:00:22.4]} 59. Bxa5
{[%clk 0:00:06.4]} 59... Qb3 {[%clk 0:00:21.7]} 60. Bd2 {[%clk 0:00:07.3]} 60...
Kg8 {[%clk 0:00:23]} 61. Ke2 {[%clk 0:00:08.6]} 61... Qd5 {[%clk 0:00:23.9]} 62.
Kf2 {[%clk 0:00:08.4]} 62... Qe6 {[%clk 0:00:24.3]} 63. Be3 {[%clk 0:00:09.7]}
63... Kh7 {[%clk 0:00:25.2]} 64. Qf6 {[%clk 0:00:11]} 64... Qd5 {[%clk
0:00:25.9]} 65. Qf4 {[%clk 0:00:08.2]} 65... Qe6 {[%clk 0:00:26.9]} 66. Bd4
{[%clk 0:00:08.4]} 66... Kg8 {[%clk 0:00:28]} 67. Ke3 {[%clk 0:00:09.7]} 67...
Qb3+ {[%clk 0:00:28.5]} 68. Ke2 {[%clk 0:00:09.7]} 68... Qa2+ {[%clk 0:00:29.2]}
69. Kf3 {[%clk 0:00:10.7]} 69... Qe6 {[%clk 0:00:29.8]} 70. Be3 {[%clk
0:00:11.6]} 70... Qh3+ {[%clk 0:00:29.3]} 71. Kf2 {[%clk 0:00:12.3]} 71... Qe6
{[%clk 0:00:30.4]} 72. Kg3 {[%clk 0:00:13.8]} 72... Kh7 {[%clk 0:00:31]} 73.
Qh4+ {[%clk 0:00:13.9]} 73... Kg8 {[%clk 0:00:31.8]} 74. Qd4 {[%clk 0:00:14.8]}
74... Kh7 {[%clk 0:00:32.7]} 75. Qd6 {[%clk 0:00:15.4]} 75... Qb3 {[%clk
0:00:33.1]} 76. Qb6 {[%clk 0:00:14.4]} 76... Qd5 {[%clk 0:00:33.5]} 77. Qc7
{[%clk 0:00:15.1]} 77... Qb3 {[%clk 0:00:34]} 78. Kf2 {[%clk 0:00:12.8]} 78...
Qa2+ {[%clk 0:00:34.7]} 79. Kf3 {[%clk 0:00:12]} 79... Qd5+ {[%clk 0:00:35.6]}
80. Kf4 {[%clk 0:00:13.2]} 80... Qe6 {[%clk 0:00:35.1]} 81. Qd6 {[%clk
0:00:12.2]} 81... Qc4+ {[%clk 0:00:35]} 82. Kg3 {[%clk 0:00:12.9]} 82... Qb3
{[%clk 0:00:35.6]} 83. Kf2 {[%clk 0:00:12.7]} 83... Qa2+ {[%clk 0:00:36.5]} 84.
Kf3 {[%clk 0:00:14]} 84... Qb3 {[%clk 0:00:37.4]} 85. e6 {[%clk 0:00:15.1]}
85... Qb7+ {[%clk 0:00:10.8]} 86. Kg3 {[%clk 0:00:15.6]} 86... fxe6 {[%clk
0:00:10.9]} 87. Qxe6 {[%clk 0:00:15.5]} 87... Qc7+ {[%clk 0:00:11.6]} 88. Kh3
{[%clk 0:00:14.8]} 88... Qb7 {[%clk 0:00:10.5]} 89. Qe5 {[%clk 0:00:14.6]} 89...
Qh1+ {[%clk 0:00:10.6]} 90. Kg3 {[%clk 0:00:15.1]} 90... Qe1+ {[%clk 0:00:11.2]}
91. Kf3 {[%clk 0:00:15.2]} 91... Qf1+ {[%clk 0:00:11.5]} 92. Bf2 {[%clk
0:00:15.2]} 92... Qd3+ {[%clk 0:00:10.7]} 93. Kg2 {[%clk 0:00:16]} 93... Qd7
{[%clk 0:00:10.5]} 94. Kg3 {[%clk 0:00:15]} 94... Qd3+ {[%clk 0:00:10.5]} 95.
Be3 {[%clk 0:00:16.3]} 95... Qd7 {[%clk 0:00:11.1]} 96. Bd4 {[%clk 0:00:17.1]}
1-0